Cogmind - Beta 16 @@@ ROGUE MODE // 2025.11.15 @ 01:22:59 // Winter2019/RPGLIKE Player: GFYguy Result: Self-destructed Performance ------------- Evolutions (1) 500 Regions Visited (2) 400 Robots Destroyed (1) 5 Value Destroyed (16) 16 Prototype IDs (1) 20 Alien Tech Used (0) 0 Bonus (0) 0 TOTAL SCORE: 941 Bonus ------- None Cogmind --------- Core Integrity 596/600 Matter 240/300 Energy 279/280 System Corruption 0% Temperature Cool (2) Movement Hovering (56) Location -9/Materials Parts ------- > --- POWER (1) -------- Heavy Ion Engine > --- PROPULSION (2) --- Improved Hover Unit Improved Hover Unit > --- UTILITY (2) ------ Light Armor Plating Hacking Suite > --- WEAPON (1) ------- Datajack > --- INVENTORY (2) ---- Ion Engine Improved Hover Unit Peak State ------------ > --- POWER ------------ Heavy Ion Engine > --- PROPULSION ------- Improved Hover Unit Improved Hover Unit > --- UTILITY ---------- Light Armor Plating Hacking Suite > --- WEAPON ----------- Medium Laser > --- INVENTORY -------- Ion Engine Improved Hover Unit [Rating: 12] Favorites ----------- Power Ion Engine Engine Ion Engine Propulsion Aluminum Leg Leg Aluminum Leg Hover Unit Improved Hover Unit Flight Unit Flight Unit Utility Light Armor Plating Hackware Hacking Suite Protection Light Armor Plating Weapon Medium Laser Energy Gun Medium Laser Special Melee Weapon Datajack Build | -11 -10 -9 ------- Run | Yrd Mat Mat Slots Evolved 2 | 1 1 . Power . | . . . Propulsion 1 | 1 . . Utility 1 | . 1 . Weapon . | . . . Parts Attached 12 | 4 4 4 Power 2 | 1 . 1 Engine 2 | 1 . 1 Core . | . . . Reactor . | . . . Propulsion 6 | 2 2 2 Treads . | . . . Leg 2 | 2 . . Wheel . | . . . Hover 2 | . . 2 Flight 2 | . 2 . Utility 2 | . 2 . Device . | . . . Storage . | . . . Processor . | . . . Hackware 1 | . 1 . Protection 1 | . 1 . Artifact . | . . . Weapon 2 | 1 . 1 Energy Gun 1 | 1 . . Energy Cannon . | . . . Ballistic Gun . | . . . Ballistic Cannon . | . . . Launcher . | . . . Special Weapon . | . . . Impact Weapon . | . . . Slashing Weapon . | . . . Piercing Weapon . | . . . Special Melee Weapon 1 | . . 1 Unidentified Prototypes 1 | . . 1 Parts Lost . | . . . Power . | . . . Propulsion . | . . . Utility . | . . . Weapon . | . . . Highest Loss Streak . | . . . To Critical Strikes . | . . . Average Backups . | . . 1 Power . | . . . Propulsion . | . . . Utility . | . . . Weapon . | . . . Tool/Special . | . . . Unused Backups 1 | . . 1 Power . | . . . Propulsion 1 | . . 1 Utility . | . . . Weapon . | . . . Tool/Special . | . . . Average Slot Usage (%) 87 | . 83 100 Engine 18 | . 19 16 Leg 21 | . 29 . Hover 5 | . . 18 Flight 10 | . 9 14 Hackware 4 | . . 16 Protection 7 | . 4 16 Energy Gun 16 | . 19 9 Special Melee Weapon 1 | . . 6 Peak Build Rating 12 | 4 8 12 Average Rating 5 | 3 4 10 On Entrance 4 | . 4 8 Avg Prop Armor Cover (%) . | . . . Naked Turns . | . . . Heaviest Build 13 | 7 10 13 Greatest Support 20 | 20 20 19 Greatest Overweight (x) . | . . . Average Overweight (x) . | . . . Largest Inventory Capacity 2 | . . 2 Average Capacity . | . . 1 Most Carried 2 | . . 2 Average Carried . | . . 1 Final Capacity 2 | . . 2 Final Carried 2 | . . 2 Class Distribution -------------------- 100% | Mutant Dominant Class ---------------- Mutant | -10/Materials Mutant | -9/Materials Resources | -11 -10 -9 ----------- Run | Yrd Mat Mat Matter Collected 260 | 240 20 . Remotely . | . . . Salvage Created 16 | . 16 . Parts 1 | . 1 . Haulers Intercepted . | . . . Recyclers Shooed . | . . . Parts Field Recycled . | . . . Retrieved Matter . | . . . Parts Self-Destructed . | . . . Prevented . | . . . Parts Restored . | . . . Kills | -11 -10 -9 ------- Run | Yrd Mat Mat Combat Hostiles Destroyed . | . . . Classes Destroyed 1 | . 1 . Operator 1 | . 1 . Best Kill Streak 1 | . 1 . Combat Bots Only . | . . . Max Kills in Single Turn 1 | . 1 . Gunslinging . | . . . Exploded . | . . . Melee . | . . . Uniques/NPCs Destroyed . | . . . Combat | -11 -10 -9 -------- Run | Yrd Mat Mat Hostile Shots Fired 6 | . 1 5 Missed 5 | . 1 4 Hits 1 | . . 1 Projectile 1 | . . 1 Damage Taken 6 | . . 6 Core 4 | . . 4 Absorbed by Shields . | . . . Redirected to Core 4 | . . 4 Core Remaining (%) 100 | 100 100 . Volleys Fired 2 | . 2 . Largest 1 | . 1 . Hottest 50 | . 50 . Shots Fired 2 | . 2 . Gun 2 | . 2 . Cannon . | . . . Launcher . | . . . Special . | . . . Kinetic . | . . . Thermal 2 | . 2 . Explosive . | . . . Electromagnetic . | . . . Robot Hit Streak 2 | . 2 . Robot Miss Streak . | . . . Penetration Max . | . . . Secondary Targets . | . . . Shots Hit Robots 4 | . 2 2 Core Hits 2 | . 2 . Critical Kills . | . . . Critical Parts Destroyed . | . . . Critical Strikes . | . . . Melee Attacks 2 | . . 2 Impact . | . . . Slashing . | . . . Piercing . | . . . Sneak Attacks 2 | . . 2 Combat Hostiles . | . . . Follow-up Attacks . | . . . Damage Inflicted 25 | . 25 . Guns 25 | . 25 . Cannons . | . . . Explosions . | . . . Melee . | . . . Ramming . | . . . Kinetic . | . . . Thermal 25 | . 25 . Explosive . | . . . Electromagnetic . | . . . Impact . | . . . Slashing . | . . . Piercing . | . . . Highest Corruption . | . . . Average Corruption . | . . . Corruption Purged . | . . . Corruption Blocked . | . . . Overload Shots . | . . . Overflow Damage . | . . . Projectiles . | . . . Explosions . | . . . Melee . | . . . Knockbacks . | . . . Impact . | . . . Kinetic . | . . . Secondary . | . . . Self-Inflicted Damage . | . . . Shots . | . . . Rammed . | . . . Targets Rammed . | . . . Kicked . | . . . Crushed . | . . . Highest Temperature 44 | . 44 . Average Temperature 24 | . 24 . Received Heat Transfer . | . . . Siege Activations . | . . . Martial Activations . | . . . Shielding Activations . | . . . Robots Disrupted . | . . . Combat Hostiles . | . . . Robots Corrupted . | . . . Combat Hostiles . | . . . Parts Fried . | . . . Impact Corruptions . | . . . Robots Melted . | . . . Combat Hostiles . | . . . Parts Melted . | . . . Heat Transferred 74 | . 74 . Parts Sabotaged . | . . . Parts Stolen . | . . . Parts Stripped . | . . . Power Chain Reactions . | . . . Alert | -11 -10 -9 ------- Run | Yrd Mat Mat Maximum Alert Level . | . . . Low Security (%) 100 | 100 100 100 Level 1 . | . . . Level 2 . | . . . Level 3 . | . . . Level 4 . | . . . Level 5 . | . . . High Security . | . . . Max Security . | . . . Peak Influence 43 | . 43 30 Initial 13 | . . 13 Average 2 | . 1 6 Influence Increases 78 | . 48 30 Destroy 0b10 Robot/NC 5 | . 5 . Successful Hack 13 | . 13 . Lose Combat Pursuer 60 | . 30 30 Influence Decreases 48 | . 15 33 Entered New Map 20 | . . 20 Time Decay 28 | . 15 13 Squads Dispatched 1 | . 1 . Investigation . | . . . Extermination . | . . . Reinforcement 1 | . 1 . Assault . | . . . Garrison . | . . . Intercept . | . . . Searches Triggered . | . . . Construction Impeded . | . . . Haulers Reinforced . | . . . Active Scanning Responses . | . . . Cargo Convoy Interrupts . | . . . Stealth | -11 -10 -9 --------- Run | Yrd Mat Mat Distress Signals 1 | . . 1 Communications Jammed . | . . . Distress Signals . | . . . Times Spotted 11 | . 6 5 Peak Tracking Total 5 | . 5 4 Tactical Retreats 2 | . 1 1 Traps | -11 -10 -9 ------- Run | Yrd Mat Mat Traps Triggered . | . . . Indirectly . | . . . Trap Hack Attempts . | . . . Triggered . | . . . Disarmed . | . . . Reprogrammed . | . . . Reused . | . . . Traps Extracted . | . . . Installed . | . . . Triggered . | . . . Machines | -11 -10 -9 ---------- Run | Yrd Mat Mat Machines Disabled . | . . . Max in Single Turn . | . . . Machines Repaired . | . . . Machines Dismantled . | . . . Machines Sabotaged . | . . . Overloaded Fab Kills . | . . . Hacking | -11 -10 -9 --------- Run | Yrd Mat Mat Machines Accessed 3 | . 3 . Terminals 3 | . 3 . Fabricators . | . . . Repair Stations . | . . . Recycling Units . | . . . Scanalyzers . | . . . Garrison Access . | . . . Total Hacks 6 | . 6 . Successful 3 | . 3 . Failed 3 | . 3 . Catastrophic 1 | . 1 . Database Lockouts . | . . . Manual . | . . . Terminals 6 | . 6 . Fabricators . | . . . Repair Stations . | . . . Recycling Units . | . . . Scanalyzers . | . . . Garrison Access . | . . . Terminal Hacks 3 | . 3 . Transport Status 1 | . 1 . Hauler Manifests 1 | . 1 . Registered Prototypes 1 | . 1 . Fabricator Hacks . | . . . Repair Station Hacks . | . . . Recycling Unit Hacks . | . . . Scanalyzer . | . . . Garrison Access Hacks . | . . . Unauthorized Hacks . | . . . Terminals . | . . . Fabricators . | . . . Repair Stations . | . . . Recycling Units . | . . . Scanalyzers . | . . . Garrison Access . | . . . Data Cores Recovered 1 | . 1 . Used . | . . . Hacking Detections 2 | . 2 . Full Trace Events . | . . . Feedback Events . | . . . Feedback Blocked . | . . . Robot Schematics Acquired . | . . . Robots Built . | . . . Authchips . | . . . Time . | . . . Total Robot Build Rating . | . . . Part Schematics Acquired . | . . . Parts Built . | . . . Authchips . | . . . Time . | . . . Total Part Build Rating . | . . . Part Studies Acquired . | . . . Parts Repaired . | . . . Time . | . . . Parts Recycled . | . . . Recycled Matter . | . . . Retrieved Matter . | . . . Retrieved Components . | . . . Parts Scanalyzed . | . . . Part Schematics Acquired . | . . . Parts Damaged . | . . . Bothacking | -11 -10 -9 ------------ Run | Yrd Mat Mat Used RIF Installer . | . . . Robots Hacked 1 | . . 1 Non-combat 1 | . . 1 Combat . | . . . Robot Hacks Applied 2 | . . 2 no_distress 1 | . . 1 find_recycling 1 | . . 1 Relay Couplers Released . | . . . Fabnet Peak Effective % . | . . . Robots Rewired . | . . . Allies Hacked . | . . . Hacks Repelled . | . . . Allies | -11 -10 -9 -------- Run | Yrd Mat Mat Total Allies . | . . . Largest Group . | . . . Highest-Rated Group . | . . . Highest-Rated Ally . | . . . Total Orders . | . . . Ally Attacks . | . . . Total Damage . | . . . Kills . | . . . Allies Corrupted . | . . . Allies Melted . | . . . Intel | -11 -10 -9 ------- Run | Yrd Mat Mat Active Infowar (turns) . | . . . Robot Analysis Total . | . . . Derelict Logs Recovered . | . . . Drone Launches . | . . . Drone Recoveries . | . . . Exploration | -11 -10 -9 ------------- Run | Yrd Mat Mat Turns Passed 300 | 63 182 55 Spaces Moved 345 | 49 209 87 Core 6 | 6 . . Treads . | . . . Legs 147 | 43 104 . Wheels . | . . . Hover 41 | . . 41 Flight 151 | . 105 46 Fastest Speed 37 | 50 37 37 Average Speed 74 | 111 78 45 Slowest Speed 120 | 120 120 56 Overloaded Moves . | . . . Propulsion Burnouts . | . . . Robots Hopped . | . . . Potential Cave-ins . | . . . Cave-ins Triggered . | . . . Exploration Rate (%) 24 | 4 58 12 Regions Visited 2 Branch Regions . Pre-discovered Areas . | . . . Known Exits Taken . | . . . Unknown Exits Taken 2 | 1 1 . Scrap Searched . | . . . Spaces Dug . | . . . Terrain Destroyed . | . . . Melee . | . . . Projectile . | . . . AOE . | . . . Terrain Rammed . | . . . Walls Destroyed . | . . . Machines Disabled . | . . . Actions | -11 -10 -9 --------- Run | Yrd Mat Mat Total 380 | 55 223 102 Wait 10 | 3 7 . Move 343 | 48 208 87 Hop . | . . . Pick Up 5 | . . 5 Fast Attach 9 | 4 4 1 Attach 2 | . . 2 Detach . | . . . Swap 1 | . . 1 Drop 6 | . 2 4 Fire 2 | . 2 . Melee 2 | . . 2 Ram . | . . . Kick . | . . . Crush . | . . . Escape Stasis . | . . . Rewire . | . . . Trap . | . . . Miscellaneous . | . . . Route ------- -11/Scrapyard -10/Materials (discovered 2 exits: [*Mat] / [*Min]) -9/Materials History --------- Turn | Location | Event 3 | -11/Scrapyard | Discovered new exit (range 16) 8 | -11/Scrapyard | Upgraded with Propulsion slot (x1) 64 | -11/Scrapyard | Entered Materials 124 | -10/Materials | Discovered new exit (range 14) 234 | -10/Materials | Upgraded with Utility slot (x1) 237 | -10/Materials | Discovered new exit (range 16) 246 | -10/Materials | Entered another Materials area 248 | -9/Materials | Reached level 2 301 | -9/Materials | Self-destructed Last Messages --------------- 00263_ Acquired Imp. Hover Unit. 00266_ Dropped Flight Unit. 00266_ Acquired Imp. Hover Unit. 00268_ Dropped Flight Unit. 00271_ Acquired Prototype Engine. 00272_ Identified Hvy. Ion Engine. 00275_ Dropped Ion Engine. 00275_ Dropped Med. Laser. 00276_ Acquired Datajack. 00278_ Acquired Ion Engine. 00282_ Sneak attack on R-06 Scavenger. 00282_ Jacked R-06 Scavenger... >>find_recycling Pinpointed nearest Recycling Unit: (31,4) (added to intel). 00284_ Sneak attack on R-06 Scavenger. 00284_ Jacked R-06 Scavenger... >>no_distress Distress signal routine blocked. 00286_ R-06 Scavenger collects Med. Laser. 00288_ W-16 Scout sends out distress signal. Map ----- +----------------------------------------------------+ | ?????????????????????????????????????????????????? | | ?????????????????????????????????????????????????? | | ?????????????????????????????????????????????????? | | ??????????????????????????????????????????? ???? | | ??????????????????????????????????????????/ ???? | | ??????????????????????????????????????????# ???? | | ??????????????????????????????????????????# ???? | | ??????????????????????????????????????????# #??? | | ??????????????????????????????????????????# #??? | | ??????????????????????????????????????????# #??? | | ??????????????????????????????????????????# #??? | | ??????????????????????????????????????????# +??? | | ????????????????????????????????????####### #### | | ???????????????????????????????????? # # | | ??????????????????????????????????? # # | | ????????????????????????????????+ """ ]! # # | | ????????????????????????????????# """ !! # # "" | | ????????????????????????????????# """ ! # # "" | | ????????????????????????????????# """ # + "" | | ????????????????????????????????? """ # # | | ??????????????????????????????????? ??# # | | ???????????????????########????????##+##### #### | | ???????????????????# #????????# | | ???????????????????# ########## | | ???????????????????#""" + | | ???????????????????#""" @####################+### | | ???????????????????#""" #???????????# # | | ???????????????????# #???????????# # | | ???????????????????########???????????# # | | ??????????????????????????????????????# # | | ??????????????????????????????????????# """ """ # | | ??????????????????????????????????????# """ """ # | | ??????????????????????????????????????# """ """ # | | ??????????????????????????????????????# # | | ?????????????????????????????????????????######### | | | | | | | | | | | | | | | | | | | | | | | | | | | | | | | +----------------------------------------------------+ Best States ------------- Heat Dissipation 25 Energy Generation 14 Energy Capacity 280 Matter Stores 300 Matter Capacity 300 Sight Range 16 Terrain Scan Density 10 Armor Coverage 150 Evasion (%) 62 Offensive Hacking 10 Item Schematics ----------------- None Robot Schematics ------------------ None Fabricated ------------ Nothing Repaired ---------- Nothing Studied --------- None Alien Tech Used ----------------- None Achievements -------------- None Challenges ------------ None RPGLIKE | -11 -10 -9 --------- Run | Yrd Mat Mat Levels Raised 1 | . . 1 XP Earned 4540 | 3000 40 1500 XP Spent 1850 | 500 600 750 Upgrades 5 | 1 2 2 Propulsion Slot 1 | 1 . . Utility Slot 1 | . 1 . Mass Support 1 | . 1 . Inventory Capacity 2 | . . 2 Protomatter Created . | . . . Protomatter Decayed . | . . . Game ------ Seed ExpertCoordinationLattice Manual? 0 Play Time 00:06:32 Cumulative 45.5 hours Start 2025.11.14 @ 21:48:13 End 2025.11.15 @ 01:22:59 Sessions 1 Manual Loads 0 Difficulty Rogue Special Mode Winter2019/RPGLIKE Game No. 95 Rogue 95 Adventurer 0 Explorer 0 Win Type - Total 0 Types 0/0/0/0/0/0/0/0/0/0 Lore% 16 Gallery% 32 Achievement% 22 Wizard Run 0 Options --------- Layout 0 ASCII 0 Keyboard 0 Movement Mouse Keybinds 0 Fullscreen 2 Font 18/SmallcapsGlow Map View 76x50 Zoom Use 0% Tactical HUD 1 Map Filters NONE Filters NONE Steam 1 RUN: e259c4b2-760a-4ae3-b222-90317989d4e2